fUSD/lending_fUSD_20250201
["ID","MTS","AMOUNT","RATE_DAILY","PERIOD"]
[351182509,1738399852673,-500.0,0.00016849,2]
[351182510,1738399852686,-500.0,0.00016849,2]
[351182511,1738399852696,-500.0,0.00016849,2]
[351182512,1738399852705,-621.1,0.00016849,2]
[351182513,1738399852714,-3925.91,0.00016849,2]
[351182514,1738399852724,-500.0,0.00016849,2]
[351182515,1738399852734,-1000.0,0.00016872,2]
[351182516,1738399852744,-150.0,0.00016875,2]
[351182517,1738399852753,-1000.0,0.00016877,2]
[351182518,1738399852766,-1200.0,0.000169,6]
[351182519,1738399852776,-150.0,0.00016906,2]
[351182520,1738399852786,-700.0,0.00016922,2]
[351182521,1738399852797,-1405.87757458,0.00016934,2]
[351182522,1738399852807,-150.0,0.00016967,2]
[351182523,1738399852816,-202.78840816,0.00016974,2]
[351182524,1738399852826,-150.0,0.00016978,2]
[351182525,1738399852836,-1696.26,0.00016983,2]
[351182526,1738399852846,-2076.17,0.00016983,2]
[351182527,1738399852855,-500.0,0.00016983,2]
[351182528,1738399852865,-627.0,0.00016983,2]
[351182529,1738399852874,-1370.4,0.00016983,2]
[351182530,1738399852884,-2146.42,0.00016983,2]
[351182531,1738399852894,-1850.47,0.00016983,2]
[351182532,1738399852903,-1660.38,0.00016983,2]
[351182533,1738399852912,-750.93,0.00016983,2]
[351182534,1738399852922,-574.44,0.00016983,2]
[351182535,1738399852931,-813.13,0.00016983,2]
[351182536,1738399852942,-875.01,0.00016983,2]
[351182537,1738399852952,-691.33,0.00016983,2]
[351182538,1738399852961,-3841.69,0.00016983,2]
[351182539,1738399852971,-500.0,0.00016984,2]
[351182540,1738399853024,-597.53,0.00016984,2]
[351182541,1738399853034,-602.98,0.00016984,2]
[351182542,1738399853044,-500.0,0.00016984,2]
[351182543,1738399853053,-500.0,0.00016984,2]
[351182544,1738399853062,-500.0,0.00016984,2]
[351182545,1738399853074,-500.0,0.00016984,2]
[351182546,1738399853084,-643.59,0.00016984,2]
[351182547,1738399853093,-582.1,0.00016984,2]
[351182548,1738399853104,-678.42,0.00016984,2]
[351182549,1738399853113,-500.0,0.00016984,2]
[351182550,1738399853123,-500.0,0.00016984,2]
[351182551,1738399853132,-500.0,0.00016984,2]
[351182552,1738399853142,-500.0,0.00016984,2]
[351182553,1738399853151,-500.0,0.00016984,2]
[351182554,1738399853159,-662.8,0.00016984,2]
[351182555,1738399853168,-500.0,0.00016984,2]
[351182556,1738399853177,-500.0,0.00016984,2]
[351182557,1738399853186,-525.12,0.00016984,2]
[351182558,1738399853196,-500.0,0.00016984,2]
[351182559,1738399853205,-500.0,0.00016984,2]
[351182560,1738399853214,-548.04,0.00016984,2]
[351182561,1738399853223,-500.0,0.00016984,2]
[351182562,1738399853232,-618.08,0.00016984,2]
[351182563,1738399853241,-602.13,0.00016984,2]
[351182564,1738399853251,-535.9,0.00016984,2]
[351182565,1738399853260,-553.2,0.00016984,2]
[351182566,1738399853270,-500.0,0.00016984,2]
[351182567,1738399853279,-500.0,0.00016984,2]
[351182568,1738399853288,-817.74,0.00016984,2]
[351182569,1738399853298,-631.93,0.00016984,2]
[351182570,1738399853307,-605.11,0.00016984,2]
[351182571,1738399853316,-963.48,0.00016984,2]
[351182572,1738399853326,-511.13,0.00016984,2]
[351182573,1738399853335,-942.08,0.00016984,2]
[351182574,1738399853344,-822.79,0.00016984,2]
[351182575,1738399853353,-823.23,0.00016984,2]
[351182576,1738399853362,-1026.47,0.00016984,2]
[351182577,1738399853371,-2387.81,0.00016984,2]
[351182578,1738399853380,-2708.74,0.00016984,2]
[351182579,1738399853390,-500.0,0.00016984,2]
[351182580,1738399853399,-1668.57,0.00016984,2]
[351182581,1738399853408,-500.0,0.00016984,2]
[351182582,1738399853418,-2362.46,0.00016984,2]
[351182583,1738399853427,-683.25,0.00016984,2]
[351182584,1738399853436,-500.0,0.00016984,2]
[351182585,1738399853445,-2132.08,0.00016984,2]
[351182586,1738399853454,-743.46,0.00016984,2]
[351182587,1738399853463,-739.76,0.00016984,2]
[351182588,1738399853473,-1903.33,0.00016984,2]
[351182589,1738399853482,-500.0,0.00016984,2]
[351182590,1738399853492,-1879.52,0.00016984,2]
[351182591,1738399853501,-2018.52,0.00016984,2]
[351182592,1738399853509,-791.88,0.00016984,2]
[351182593,1738399853519,-2131.88,0.00016984,2]
[351182594,1738399853528,-500.0,0.00016984,2]
[351182595,1738399853537,-636.58,0.00016984,2]
[351182596,1738399853546,-1092.53,0.00016984,2]
[351182597,1738399853555,-753.21,0.00016984,2]
[351182598,1738399853565,-500.0,0.00016984,2]
[351182599,1738399853576,-738.27,0.00016984,2]
[351182600,1738399853585,-538.96,0.00016984,2]
[351182601,1738399853594,-718.1,0.00016984,2]
[351182602,1738399853604,-500.0,0.00016984,2]
[351182603,1738399853613,-569.97,0.00016984,2]
[351182604,1738399853622,-500.0,0.00016984,2]
[351182605,1738399853631,-1038.0,0.00016984,2]
[351182606,1738399853640,-500.0,0.00016984,2]
[351182607,1738399853649,-500.0,0.00016984,2]
[351182608,1738399853658,-500.0,0.00016984,2]
[351182609,1738399853667,-593.68,0.00016984,2]
[351182610,1738399853677,-953.41,0.00016984,2]
[351182611,1738399853689,-500.0,0.00016984,2]
[351182612,1738399853699,-500.0,0.00016984,2]
[351182613,1738399853708,-500.0,0.00016984,2]
[351182614,1738399853717,-805.58,0.00016984,2]
[351182615,1738399853726,-224.21872798,0.00016984,2]
[351182616,1738399853737,-500.0,0.00016984,2]
[351182617,1738399853747,-604.32,0.00016984,2]
[351182618,1738399853756,-837.34,0.00016984,2]
[351182619,1738399853766,-1283.13,0.00016984,2]
[351182620,1738399853775,-500.0,0.00016984,2]
[351182621,1738399853785,-1335.88,0.00016984,2]
[351182622,1738399853794,-2610.26,0.00016984,2]
[351182623,1738399853804,-500.0,0.00016984,2]
[351182624,1738399853815,-4833.97,0.00016984,2]
[351182625,1738399853827,-500.0,0.00016984,2]
[351182626,1738399853836,-500.0,0.00016984,2]
[351182627,1738399853846,-500.0,0.00016984,2]
[351182628,1738399853857,-1465.33,0.00016985,2]
[351182629,1738399853866,-2282.45,0.00016985,2]
[351182630,1738399853876,-904.16,0.00016985,2]
[351182631,1738399853886,-1577.48,0.00016985,2]
[351182632,1738399853895,-500.0,0.00016985,2]
[351182633,1738399853904,-775.84,0.00016985,2]
[351182634,1738399853913,-1352.4,0.00016985,2]
[351182635,1738399853922,-1546.09,0.00016985,2]
[351182636,1738399853932,-500.0,0.00016985,2]
[351182637,1738399853942,-1000.0,0.00016985,2]
[351182638,1738399853952,-1383.7,0.00016985,2]
[351182639,1738399853962,-502.04,0.00016985,2]
[351182640,1738399853971,-2390.63,0.00016985,2]
[351182641,1738399853981,-635.47,0.00016985,2]
[351182642,1738399853990,-500.0,0.00016986,2]
[351182643,1738399854000,-500.0,0.00016986,2]
[351182644,1738399854009,-500.0,0.00016986,2]
[351182645,1738399854018,-500.0,0.00016986,2]
[351182646,1738399854028,-500.0,0.00016986,2]
[351182647,1738399854037,-500.0,0.00016986,2]
[351182648,1738399854047,-500.0,0.00016986,2]
[351182649,1738399854057,-500.0,0.00016986,2]
[351182650,1738399854067,-500.0,0.00016986,2]
[351182651,1738399854077,-500.0,0.00016986,2]
[351182652,1738399854087,-500.0,0.00016986,2]
[351182653,1738399854097,-500.0,0.00016986,2]
[351182654,1738399854107,-558.78765455,0.00016986,2]
[351182655,1738399854116,-500.0,0.00016986,2]
[351182656,1738399854125,-464.64040756,0.00016986,2]
[351182657,1738399854135,-499.45841508,0.00016986,2]
[351182658,1738399854144,-500.0,0.00016986,2]
[351182659,1738399854154,-500.0,0.00016986,2]
[351182660,1738399854163,-500.0,0.00016986,2]
[351182661,1738399854172,-528.19,0.00016986,2]
[351182662,1738399854182,-500.0,0.00016986,2]
[351182663,1738399854191,-500.0,0.00016986,2]
[351182664,1738399854201,-347.41,0.00016986,2]
[351182665,1738399854211,-500.0,0.00016986,2]
[351182666,1738399854221,-206.19691942,0.00016986,2]
[351182667,1738399854230,-500.0,0.00016986,2]
[351182668,1738399854239,-500.0,0.00016986,2]
[351182669,1738399854249,-500.0,0.00016986,2]
[351182670,1738399854259,-525.68,0.00016986,2]
[351182671,1738399854269,-500.0,0.00016986,2]
[351182672,1738399854279,-761.75,0.00016986,2]
[351182673,1738399854288,-500.0,0.00016986,2]
[351182674,1738399854298,-620.94,0.00016986,2]
[351182675,1738399854308,-500.0,0.00016986,2]
[351182676,1738399854317,-500.0,0.00016986,2]
[351182677,1738399854327,-500.0,0.00016986,2]
[351182678,1738399854337,-688.17,0.00016986,2]
[351182679,1738399854347,-520.63,0.00016986,2]
[351182680,1738399854357,-500.0,0.00016986,2]
[351182681,1738399854367,-332.07312438,0.00016986,2]
[351182682,1738399854377,-546.29,0.00016986,2]
[351182683,1738399854387,-500.0,0.00016986,2]
[351182684,1738399854397,-500.0,0.00016986,2]
[351182685,1738399854406,-500.0,0.00016986,2]
[351182686,1738399854416,-500.0,0.00016986,2]
[351182687,1738399854426,-500.0,0.00016986,2]
[351182688,1738399854435,-706.17,0.00016986,2]
[351182689,1738399854445,-500.0,0.00016986,2]
[351182690,1738399854455,-500.0,0.00016986,2]
[351182691,1738399854465,-500.0,0.00016986,2]
[351182692,1738399854475,-500.0,0.00016986,2]
[351182693,1738399854484,-500.0,0.00016986,2]
[351182694,1738399854494,-500.0,0.00016986,2]
[351182695,1738399854504,-500.0,0.00016986,2]
[351182696,1738399854513,-825.63,0.00016986,2]
[351182697,1738399854522,-598.4,0.00016986,2]
[351182698,1738399854532,-500.0,0.00016986,2]
[351182699,1738399854541,-500.0,0.00016986,2]
[351182700,1738399854551,-500.0,0.00016986,2]
[351182701,1738399854560,-726.45,0.00016986,2]
[351182702,1738399854570,-500.0,0.00016986,2]
[351182703,1738399854581,-200.0,0.00016986,2]
[351182704,1738399854590,-500.0,0.00016986,2]
[351182705,1738399854600,-1157.25,0.00016986,2]
[351182706,1738399854610,-500.0,0.00016986,2]
[351182707,1738399854621,-500.0,0.00016986,2]
[351182708,1738399854631,-450.302109,0.00016986,2]
[351182709,1738399854640,-500.0,0.00016986,2]
[351182710,1738399854650,-500.0,0.00016986,2]
[351182711,1738399854659,-416.97856546,0.00016986,2]
[351182712,1738399854669,-623.01,0.00016986,2]
[351182713,1738399854679,-500.0,0.00016986,2]
[351182714,1738399854692,-1237.86,0.00016986,2]
[351182715,1738399854706,-500.0,0.00016986,2]
[351182716,1738399854716,-794.39,0.00016986,2]
[351182717,1738399854727,-232.84708838,0.00016986,2]
[351182718,1738399854737,-500.0,0.00016986,2]
[351182719,1738399854746,-500.0,0.00016986,2]
[351182720,1738399854757,-900.16,0.00016986,2]
[351182721,1738399854770,-1144.92,0.00016986,2]
[351182722,1738399854782,-445.813525,0.00016986,2]
[351182723,1738399854792,-500.0,0.00016986,2]
[351182724,1738399854803,-1330.79,0.00016986,2]
[351182725,1738399854813,-873.52,0.00016986,2]
[351182726,1738399854824,-1097.36,0.00016986,2]
[351182727,1738399854834,-500.0,0.00016986,2]
[351182728,1738399854844,-911.22,0.00016986,2]
[351182729,1738399854855,-796.08,0.00016986,2]
[351182730,1738399854864,-500.0,0.00016986,2]
[351182731,1738399854875,-500.0,0.00016986,2]
[351182732,1738399854885,-500.19858581,0.00016986,2]
[351182733,1738399854895,-2074.04,0.00016986,2]
[351182734,1738399854906,-667.67,0.00016986,2]
[351182735,1738399854915,-500.0,0.00016986,2]
[351182736,1738399854925,-1244.07,0.00016986,2]
[351182737,1738399854935,-500.0,0.00016986,2]
[351182738,1738399854945,-2707.78,0.00016986,2]
[351182739,1738399854955,-796.81,0.00016986,2]
[351182740,1738399854965,-1529.22,0.00016986,2]
[351182741,1738399854975,-500.0,0.00016986,2]
[351182742,1738399854985,-917.48,0.00016986,2]
[351182743,1738399854994,-1471.11,0.00016986,2]
[351182744,1738399855004,-500.0,0.00016986,2]
[351182745,1738399855015,-1512.35,0.00016986,2]
[351182746,1738399855025,-500.0,0.00016986,2]
[351182747,1738399855035,-500.0,0.00016986,2]
[351182748,1738399855045,-818.52,0.00016986,2]
[351182749,1738399855055,-2864.2,0.00016986,2]
[351182750,1738399855064,-1217.27,0.00016986,2]
[351182751,1738399855075,-961.91,0.00016986,2]
[351182752,1738399855085,-1419.87,0.00016986,2]
[351182753,1738399855094,-459.49224157,0.00016986,2]
[351182754,1738399855104,-580.81,0.00016986,2]
[351182755,1738399855115,-500.0,0.00016986,2]
[351182756,1738399855124,-280.2739075,0.00016986,2]
[351182757,1738399855134,-500.0,0.00016986,2]
[351182758,1738399855144,-500.0,0.00016986,2]
[351182759,1738399855154,-902.94,0.00016986,2]
[351182760,1738399855164,-1453.2,0.00016986,2]
[351182761,1738399855174,-500.0,0.00016986,2]
[351182762,1738399855183,-500.0,0.00016986,2]
[351182763,1738399855194,-798.92,0.00016986,2]
[351182764,1738399855203,-2365.3,0.00016986,2]
[351182765,1738399855213,-500.0,0.00016986,2]
[351182766,1738399855223,-779.0,0.00016986,2]
[351182767,1738399855233,-633.18,0.00016986,2]
[351182768,1738399855243,-507.66,0.00016986,2]
[351182769,1738399855254,-500.0,0.00016986,2]
[351182770,1738399855263,-1043.13,0.00016986,2]
[351182771,1738399855273,-500.0,0.00016986,2]
[351182772,1738399855283,-1567.89,0.00016986,2]
[351182773,1738399855293,-910.38,0.00016986,2]
[351182774,1738399855303,-500.0,0.00016986,2]
[351182775,1738399855313,-1273.65,0.00016986,2]
[351182776,1738399855323,-500.0,0.00016986,2]
[351182777,1738399855334,-879.55,0.00016986,2]
[351182778,1738399855344,-601.78,0.00016986,2]
[351182779,1738399855353,-1015.54,0.00016986,2]
[351182780,1738399855363,-500.0,0.00016986,2]
[351182781,1738399855373,-2958.79,0.00016986,2]
[351182782,1738399855382,-500.0,0.00016986,2]
[351182783,1738399855392,-761.06,0.00016986,2]
[351182784,1738399855402,-572.04,0.00016986,2]
[351182785,1738399855412,-500.0,0.00016986,2]
[351182786,1738399855421,-500.0,0.00016986,2]
[351182787,1738399855431,-257.78462835,0.00016986,2]
[351182788,1738399855440,-621.1,0.00016986,2]
[351182789,1738399855450,-3925.91,0.00016986,2]
[351182790,1738399855459,-1000.0,0.00016998,2]
[351182791,1738399855469,-449.97,0.00017,2]
[351182792,1738399855479,-650.0,0.00017,2]
[351182793,1738399855489,-1405.87757458,0.00017038,2]
[351182794,1738399855499,-160587.13102369,0.00017058,2]
[351182795,1738399855509,-1582.45240858,0.00017065,2]
[351182796,1738399855519,-13194.18316258,0.00017092,2]
[351182797,1738399855528,-500.0,0.0001711,2]
[351182798,1738399855538,-500.0,0.0001711,2]
[351182799,1738399855548,-167.00811582,0.0001711,2]
[351182800,1738399855558,-151.17007566,0.0001711,2]
[351182801,1738399855567,-178.8232145,0.0001711,2]
[351182802,1738399855578,-500.72027652,0.0001711,2]
[351182803,1738399855588,-1696.26,0.0001712,2]
[351182804,1738399855598,-2076.17,0.0001712,2]
[351182805,1738399855607,-500.0,0.0001712,2]
[351182806,1738399855617,-627.0,0.0001712,2]
[351182807,1738399855627,-1370.4,0.0001712,2]
[351182808,1738399855638,-2146.42,0.0001712,2]
[351182809,1738399855650,-1850.47,0.0001712,2]
[351182810,1738399855660,-1660.38,0.0001712,2]
[351182811,1738399855670,-750.93,0.0001712,2]
[351182812,1738399855680,-574.44,0.0001712,2]
[351182813,1738399855693,-813.13,0.0001712,2]
[351182814,1738399855702,-875.01,0.0001712,2]
[351182815,1738399855712,-691.33,0.0001712,2]
[351182816,1738399855722,-3841.69,0.0001712,2]
[351182817,1738399855732,-500.0,0.00017121,2]
[351182818,1738399855742,-597.53,0.00017121,2]
[351182819,1738399855752,-602.98,0.00017121,2]
[351182820,1738399855761,-500.0,0.00017121,2]
[351182821,1738399855773,-500.0,0.00017121,2]
[351182822,1738399855784,-500.0,0.00017121,2]
[351182823,1738399855794,-500.0,0.00017121,2]
[351182824,1738399855804,-643.59,0.00017121,2]
[351182825,1738399855814,-582.1,0.00017121,2]
[351182826,1738399855824,-678.42,0.00017121,2]
[351182827,1738399855833,-500.0,0.00017121,2]
[351182828,1738399855843,-500.0,0.00017121,2]
[351182829,1738399855853,-500.0,0.00017121,2]
[351182830,1738399855864,-500.0,0.00017121,2]
[351182831,1738399855874,-500.0,0.00017121,2]
[351182832,1738399855884,-662.8,0.00017121,2]
[351182833,1738399855894,-463.18117592,0.00017121,2]
[351182834,1738399855904,-500.0,0.00017121,2]
[351182835,1738399855913,-525.12,0.00017121,2]
[351182836,1738399855923,-500.0,0.00017121,2]
[351182837,1738399855933,-555.04668853,0.00017121,2]
[351182838,1738399855942,-548.04,0.00017121,2]
[351182839,1738399855952,-500.0,0.00017121,2]
[351182840,1738399856087,-618.08,0.00017121,2]
[351182841,1738399856114,-602.13,0.00017121,2]
[351182842,1738399856124,-535.9,0.00017121,2]
[351182843,1738399856133,-553.2,0.00017121,2]
[351182844,1738399856142,-500.0,0.00017121,2]
[351182845,1738399856151,-500.0,0.00017121,2]
[351182846,1738399856161,-817.74,0.00017121,2]
[351182847,1738399856170,-631.93,0.00017121,2]
[351182848,1738399856180,-605.11,0.00017121,2]
[351182849,1738399856190,-963.48,0.00017121,2]
[351182850,1738399856199,-511.13,0.00017121,2]
[351182851,1738399856208,-942.08,0.00017121,2]
[351182852,1738399856217,-822.79,0.00017121,2]
[351182853,1738399856226,-823.23,0.00017121,2]
[351182854,1738399856236,-1026.47,0.00017121,2]
[351182855,1738399856245,-2387.81,0.00017121,2]
[351182856,1738399856254,-2708.74,0.00017121,2]
[351182857,1738399856264,-500.0,0.00017121,2]
[351182858,1738399856273,-1668.57,0.00017121,2]
[351182859,1738399856282,-500.0,0.00017121,2]
[351182860,1738399856292,-2362.46,0.00017121,2]
[351182861,1738399856302,-683.25,0.00017121,2]
[351182862,1738399856311,-500.0,0.00017121,2]
[351182863,1738399856321,-2132.08,0.00017121,2]
[351182864,1738399856331,-743.46,0.00017121,2]
[351182865,1738399856340,-739.76,0.00017121,2]
[351182866,1738399856349,-1903.33,0.00017121,2]
[351182867,1738399856358,-500.0,0.00017121,2]
[351182868,1738399856368,-1879.52,0.00017121,2]
[351182869,1738399856377,-2018.52,0.00017121,2]
[351182870,1738399856386,-791.88,0.00017121,2]
[351182871,1738399856395,-2131.88,0.00017121,2]
[351182872,1738399856404,-500.0,0.00017121,2]
[351182873,1738399856414,-636.58,0.00017121,2]
[351182874,1738399856424,-1092.53,0.00017121,2]
[351182875,1738399856433,-753.21,0.00017121,2]
[351182876,1738399856443,-500.0,0.00017121,2]
[351182877,1738399856453,-738.27,0.00017121,2]
[351182878,1738399856463,-538.96,0.00017121,2]
[351182879,1738399856472,-718.1,0.00017121,2]
[351182880,1738399856482,-500.0,0.00017121,2]
[351182881,1738399856492,-569.97,0.00017121,2]
[351182882,1738399856504,-500.0,0.00017121,2]
[351182883,1738399856518,-1038.0,0.00017121,2]
[351182884,1738399856532,-500.0,0.00017121,2]
[351182885,1738399856543,-500.0,0.00017121,2]
[351182886,1738399856553,-500.0,0.00017121,2]
[351182887,1738399856562,-593.68,0.00017121,2]
[351182888,1738399856571,-953.41,0.00017121,2]
[351182889,1738399856583,-500.0,0.00017121,2]
[351182890,1738399856593,-500.0,0.00017121,2]
[351182891,1738399856604,-500.0,0.00017121,2]
[351182892,1738399856613,-805.58,0.00017121,2]
[351182893,1738399856623,-500.0,0.00017121,2]
[351182894,1738399856634,-604.32,0.00017121,2]
[351182895,1738399856644,-837.34,0.00017121,2]
[351182896,1738399856654,-1283.13,0.00017121,2]
[351182897,1738399856663,-500.0,0.00017121,2]
[351182898,1738399856674,-1335.88,0.00017121,2]
[351182899,1738399856686,-2610.26,0.00017121,2]
[351182900,1738399856697,-500.0,0.00017121,2]
[351182901,1738399856708,-4833.97,0.00017121,2]
[351182902,1738399856717,-500.0,0.00017121,2]
[351182903,1738399856727,-439.28116088,0.00017121,2]
[351182904,1738399856737,-500.0,0.00017121,2]
[351182905,1738399856746,-1465.33,0.00017122,2]
[351182906,1738399856755,-2282.45,0.00017122,2]
[351182907,1738399856765,-904.16,0.00017122,2]
[351182908,1738399856775,-1577.48,0.00017122,2]
[351182909,1738399856784,-500.0,0.00017122,2]
[351182910,1738399856794,-775.84,0.00017122,2]
[351182911,1738399856803,-1352.4,0.00017122,2]
[351182912,1738399856812,-1546.09,0.00017122,2]
[351182913,1738399856822,-1000.0,0.00017122,2]
[351182914,1738399856833,-1383.7,0.00017122,2]
[351182915,1738399856842,-502.04,0.00017122,2]
[351182916,1738399856851,-2390.63,0.00017122,2]
[351182917,1738399856860,-635.47,0.00017122,2]
[351182918,1738399856870,-500.0,0.00017123,2]
[351182919,1738399856880,-500.0,0.00017123,2]
[351182920,1738399856889,-500.0,0.00017123,2]
[351182921,1738399856899,-500.0,0.00017123,2]
[351182922,1738399856908,-500.0,0.00017123,2]
[351182923,1738399856918,-500.0,0.00017123,2]
[351182924,1738399856928,-500.0,0.00017123,2]
[351182925,1738399856938,-591.46090122,0.00017123,2]
[351182926,1738399856947,-500.0,0.00017123,2]
[351182927,1738399856957,-500.0,0.00017123,2]
[351182928,1738399856967,-500.0,0.00017123,2]
[351182929,1738399856976,-500.0,0.00017123,2]
[351182930,1738399856985,-500.0,0.00017123,2]
[351182931,1738399856995,-500.0,0.00017123,2]
[351182932,1738399857005,-500.0,0.00017123,2]
[351182933,1738399857015,-500.0,0.00017123,2]
[351182934,1738399857024,-528.19,0.00017123,2]
[351182935,1738399857034,-500.0,0.00017123,2]
[351182936,1738399857044,-500.0,0.00017123,2]
[351182937,1738399857054,-347.41,0.00017123,2]
[351182938,1738399857063,-500.0,0.00017123,2]
[351182939,1738399857072,-500.0,0.00017123,2]
[351182940,1738399857083,-500.0,0.00017123,2]
[351182941,1738399857092,-500.0,0.00017123,2]
[351182942,1738399857101,-525.68,0.00017123,2]
[351182943,1738399857111,-500.0,0.00017123,2]
[351182944,1738399857120,-761.75,0.00017123,2]
[351182945,1738399857130,-193.12733907,0.00017123,2]
[351182946,1738399857142,-620.94,0.00017123,2]
[351182947,1738399857151,-500.0,0.00017123,2]
[351182948,1738399857160,-500.0,0.00017123,2]
[351182949,1738399857170,-500.0,0.00017123,2]
[351182950,1738399857179,-688.17,0.00017123,2]
[351182951,1738399857191,-520.63,0.00017123,2]
[351182952,1738399857204,-500.0,0.00017123,2]
[351182953,1738399857213,-546.29,0.00017123,2]
[351182954,1738399857222,-500.0,0.00017123,2]
[351182955,1738399857231,-500.0,0.00017123,2]
[351182956,1738399857241,-202.14384322,0.00017123,2]
[351182957,1738399857251,-500.0,0.00017123,2]
[351182958,1738399857261,-500.0,0.00017123,2]
[351182959,1738399857272,-706.17,0.00017123,2]
[351182960,1738399857288,-500.0,0.00017123,2]
[351182961,1738399857304,-500.0,0.00017123,2]
[351182962,1738399857314,-500.0,0.00017123,2]
[351182963,1738399857322,-500.0,0.00017123,2]
[351182964,1738399857337,-500.0,0.00017123,2]
[351182965,1738399857347,-500.0,0.00017123,2]
[351182966,1738399857356,-500.0,0.00017123,2]
[351182967,1738399857365,-825.63,0.00017123,2]
[351182968,1738399857375,-598.4,0.00017123,2]
[351182969,1738399857385,-500.0,0.00017123,2]
[351182970,1738399857395,-500.0,0.00017123,2]
[351182971,1738399857404,-500.0,0.00017123,2]
[351182972,1738399857414,-726.45,0.00017123,2]
[351182973,1738399857423,-500.0,0.00017123,2]
[351182974,1738399857433,-200.0,0.00017123,2]
[351182975,1738399857443,-500.0,0.00017123,2]
[351182976,1738399857452,-1157.25,0.00017123,2]
[351182977,1738399857462,-500.0,0.00017123,2]
[351182978,1738399857471,-500.0,0.00017123,2]
[351182979,1738399857481,-450.302109,0.00017123,2]
[351182980,1738399857491,-500.0,0.00017123,2]
[351182981,1738399857501,-500.0,0.00017123,2]
[351182982,1738399857511,-623.01,0.00017123,2]
[351182983,1738399857522,-500.0,0.00017123,2]
[351182984,1738399857531,-1237.86,0.00017123,2]
[351182985,1738399857540,-500.0,0.00017123,2]
[351182986,1738399857550,-794.39,0.00017123,2]
[351182987,1738399857560,-500.0,0.00017123,2]
[351182988,1738399857569,-500.0,0.00017123,2]
[351182989,1738399857579,-900.16,0.00017123,2]
[351182990,1738399857588,-1144.92,0.00017123,2]
[351182991,1738399857598,-445.813525,0.00017123,2]
[351182992,1738399857608,-500.0,0.00017123,2]
[351182993,1738399857617,-1330.79,0.00017123,2]
[351182994,1738399857627,-873.52,0.00017123,2]
[351182995,1738399857636,-1097.36,0.00017123,2]
[351182996,1738399857646,-500.0,0.00017123,2]
[351182997,1738399857655,-911.22,0.00017123,2]
[351182998,1738399857665,-796.08,0.00017123,2]
[351182999,1738399857675,-500.0,0.00017123,2]
[351183000,1738399857686,-500.0,0.00017123,2]
[351183001,1738399857699,-2074.04,0.00017123,2]
[351183002,1738399857710,-667.67,0.00017123,2]
[351183003,1738399857719,-500.0,0.00017123,2]
[351183004,1738399857730,-1244.07,0.00017123,2]
[351183005,1738399857739,-500.0,0.00017123,2]
[351183006,1738399857749,-2707.78,0.00017123,2]
[351183007,1738399857760,-796.81,0.00017123,2]
[351183008,1738399857770,-1529.22,0.00017123,2]